bitfinex/quotes_BTCUSD_20241018
["timestamp","ask_amount","ask_price","bid_price","bid_amount"]
[1729287734621,0.29526004,68426.0,68425.0,0.001656]
[1729287734793,0.18574729,68426.0,68425.0,0.001656]
[1729287735585,0.076043,68426.0,68416.0,0.166312]
[1729287735787,0.0438019,68424.0,68417.0,0.14872]
[1729287736194,0.05499878,68423.0,68417.0,0.14872]
[1729287736558,0.05499878,68423.0,68416.0,0.166312]
[1729287736983,0.05499878,68423.0,68417.0,0.14872]
[1729287737184,0.00619688,68423.0,68417.0,0.14872]
[1729287737387,0.0438019,68424.0,68417.0,0.14872]
[1729287737797,0.0438019,68424.0,68418.0,0.1]
[1729287738049,0.01132984,68423.0,68418.0,0.1]
[1729287738288,0.0438019,68422.0,68418.0,0.1]
[1729287738703,0.05513174,68423.0,68418.0,0.1]
[1729287739322,0.05513174,68423.0,68416.0,0.193]
[1729287739530,0.05513174,68423.0,68418.0,0.1]
[1729287739928,0.05595974,68423.0,68418.0,0.1]
[1729287740903,0.05595974,68423.0,68416.0,0.094656]
[1729287741109,0.05595974,68423.0,68418.0,0.1]
[1729287741318,0.05595974,68423.0,68416.0,0.094656]
[1729287741524,0.05595974,68423.0,68418.0,0.1]
[1729287741724,0.05595974,68423.0,68416.0,0.094656]
[1729287741932,0.0438019,68417.0,68416.0,0.094656]
[1729287742350,0.0438019,68417.0,68416.0,0.001656]
[1729287742550,0.0438019,68418.0,68416.0,0.001656]
[1729287743908,0.0438019,68419.0,68416.0,0.001656]
[1729287744110,0.0438019,68420.0,68416.0,0.001656]
[1729287745810,0.0438019,68419.0,68416.0,0.001656]
[1729287746046,0.04378532,68419.0,68416.0,0.001656]
[1729287746532,0.04378532,68420.0,68416.0,0.001656]
[1729287748746,0.04378532,68418.0,68416.0,0.001656]
[1729287748969,0.04378532,68420.0,68416.0,0.001656]
[1729287750749,0.0437807,68420.0,68416.0,0.001656]
[1729287755196,0.0437807,68421.0,68416.0,0.001656]
[1729287755625,0.0437807,68420.0,68416.0,0.001656]
[1729287757102,0.06567105,68422.0,68416.0,0.001656]
[1729287757103,0.0437807,68419.0,68416.0,0.001656]
[1729287757308,0.0437807,68420.0,68416.0,0.001656]
[1729287760268,0.0437807,68418.0,68416.0,0.001656]
[1729287760417,0.04378305,68419.0,68416.0,0.001656]
[1729287760619,0.04378305,68420.0,68416.0,0.001656]
[1729287764207,0.04378305,68419.0,68416.0,0.001656]
[1729287764636,0.04378305,68420.0,68416.0,0.001656]
[1729287765463,0.04378286,68420.0,68416.0,0.001656]
[1729287767728,0.04378286,68419.0,68416.0,0.001656]
[1729287767934,0.04378286,68420.0,68416.0,0.001656]
[1729287769578,0.04378286,68419.0,68416.0,0.001656]
[1729287769784,0.04378286,68420.0,68416.0,0.001656]
[1729287770114,0.04378297,68420.0,68416.0,0.001656]
[1729287770784,0.04378297,68420.0,68416.0,0.0012252]
[1729287774171,0.10945742,68420.0,68416.0,0.0012252]
[1729287774375,0.04378297,68420.0,68416.0,0.0012252]
[1729287776215,0.04356557,68420.0,68416.0,0.0012252]
[1729287777227,0.06568353,68421.0,68416.0,0.0012252]
[1729287778005,0.06568353,68422.0,68416.0,0.0012252]
[1729287779901,0.06568353,68420.0,68416.0,0.0012252]
[1729287780305,0.06568353,68421.0,68416.0,0.0012252]
[1729287780535,0.07784137,68423.0,68416.0,0.0012252]
[1729287781160,0.06568353,68421.0,68416.0,0.0012252]
[1729287781381,0.06568353,68422.0,68416.0,0.0012252]
[1729287781788,0.06568353,68421.0,68416.0,0.0012252]
[1729287782195,0.06568353,68422.0,68416.0,0.0012252]
[1729287782993,0.06568353,68420.0,68416.0,0.0012252]
[1729287783447,0.06568353,68422.0,68416.0,0.0012252]
[1729287783677,0.06568353,68421.0,68416.0,0.0012252]
[1729287786196,0.04380291,68419.0,68416.0,0.0012252]
[1729287787822,0.04380291,68419.0,68417.0,0.0933]
[1729287788116,0.06568353,68419.0,68417.0,0.0933]
[1729287788323,0.04380778,68419.0,68417.0,0.0933]
[1729287789677,0.04380778,68419.0,68416.0,0.0012252]
[1729287794358,0.08757804,68417.0,68416.0,0.0012252]
[1729287794558,0.24931908,68417.0,68416.0,0.0012252]
[1729287794767,0.16174104,68417.0,68416.0,0.0012252]
[1729287795180,0.08757804,68418.0,68416.0,0.0012252]
[1729287797463,0.06570704,68417.0,68416.0,0.0012252]
[1729287802844,0.0656915,68417.0,68416.0,0.0012252]
[1729287804566,0.0656915,68418.0,68416.0,0.0012252]
[1729287805650,0.04379,68418.0,68416.0,0.0012252]
[1729287805857,0.0656915,68420.0,68416.0,0.0012252]
[1729287805858,0.04379,68420.0,68416.0,0.0012252]
[1729287807188,0.04379,68419.0,68416.0,0.0012252]
[1729287808040,0.04379,68420.0,68416.0,0.0012252]
[1729287808912,0.044618,68420.0,68416.0,0.0012252]
[1729287812389,0.000828,68420.0,68416.0,0.0012252]
[1729287812591,0.044615,68420.0,68416.0,0.0012252]
[1729287815135,0.044615,68420.0,68411.0,0.0971]
[1729287815136,0.0656805,68417.0,68411.0,0.0971]
[1729287815357,0.26290024,68419.0,68411.0,0.0971]
[1729287815358,0.04378845,68418.0,68413.0,0.1]
[1729287816826,0.04378845,68418.0,68411.0,0.0971]
[1729287817015,0.04378845,68418.0,68413.0,0.1]
[1729287817427,0.04378667,68418.0,68413.0,0.1]
[1729287818447,0.04378667,68418.0,68411.0,0.0971]
[1729287818656,0.04378667,68418.0,68413.0,0.1]
[1729287819813,0.04378667,68418.0,68411.0,0.0971]
[1729287820182,0.04378667,68418.0,68413.0,0.1]
[1729287820395,0.04378667,68418.0,68413.0,0.001656]
[1729287820717,0.04378667,68417.0,68413.0,0.001656]
[1729287822154,0.04378698,68417.0,68413.0,0.001656]
[1729287823916,0.04378698,68418.0,68413.0,0.001656]
[1729287824332,0.04378698,68417.0,68413.0,0.001656]
[1729287825087,0.04378698,68418.0,68413.0,0.001656]
[1729287825523,0.04378698,68417.0,68413.0,0.001656]
[1729287826010,0.04378698,68416.0,68413.0,0.001656]
[1729287826775,0.04378698,68417.0,68413.0,0.001656]
[1729287827354,0.04378698,68416.0,68413.0,0.001656]
[1729287827831,0.06568048,68414.0,68413.0,0.001656]
[1729287828039,0.06568048,68415.0,68413.0,0.001656]
[1729287828275,0.17247999,68414.0,68413.0,0.001656]
[1729287828467,0.18616722,68414.0,68413.0,0.001656]
[1729287828761,0.07652391,68414.0,68413.0,0.001656]
[1729287829136,0.27100983,68414.0,68413.0,0.001656]
[1729287829349,0.01084255,68414.0,68413.0,0.001656]
[1729287829545,0.07651761,68414.0,68413.0,0.001656]
[1729287829782,0.10854255,68414.0,68413.0,0.001656]
[1729287829932,0.27016197,68414.0,68413.0,0.001656]
[1729287830136,0.10854255,68414.0,68413.0,0.001656]
[1729287830341,0.27014916,68414.0,68413.0,0.001656]
[1729287830757,0.27014849,68414.0,68413.0,0.001656]
[1729287831210,0.43879762,68414.0,68413.0,0.001656]
[1729287831664,0.46071596,68414.0,68413.0,0.001656]
[1729287831871,0.35124849,68414.0,68413.0,0.001656]
[1729287832065,0.36219104,68414.0,68413.0,0.001656]
[1729287832336,0.43878687,68414.0,68413.0,0.001656]
[1729287833278,0.58774602,68414.0,68404.0,0.1]
[1729287833493,0.04376721,68406.0,68403.0,0.3635]
[1729287833704,0.04376721,68406.0,68387.0,0.21992513]
[1729287833705,0.43089936,68405.0,68390.0,0.0751]
[1729287833914,0.43089936,68405.0,68387.0,0.21992513]
[1729287833915,0.04377446,68396.0,68387.0,0.21992513]
[1729287834126,0.12187446,68395.0,68387.0,0.21992513]
[1729287834372,0.0781,68395.0,68387.0,0.21992513]
[1729287835481,0.0781,68395.0,68388.0,0.1]
[1729287840602,0.22705915,68395.0,68387.0,0.001656]
[1729287840827,0.14895915,68395.0,68389.0,0.1]
[1729287841774,0.18553361,68395.0,68389.0,0.1]
[1729287842826,0.14895915,68395.0,68389.0,0.1]
[1729287844522,0.14895915,68394.0,68389.0,0.1]
[1729287844727,0.14895915,68394.0,68387.0,0.001656]
[1729287848149,0.0781,68399.0,68387.0,0.001656]
[1729287848357,0.14895915,68398.0,68388.0,0.1]
[1729287861460,0.01093124,68397.0,68388.0,0.1]
[1729287861674,0.15989039,68397.0,68388.0,0.1]
[1729287861885,0.14895915,68397.0,68388.0,0.1]
[1729287862344,0.01093955,68396.0,68388.0,0.1]
[1729287862544,0.14895915,68397.0,68388.0,0.1]
[1729287862656,0.01094083,68396.0,68388.0,0.1]
[1729287862859,0.14895915,68397.0,68388.0,0.1]
[1729287863087,0.0109408,68396.0,68388.0,0.1]
[1729287863466,0.0109408,68395.0,68388.0,0.1]
[1729287863679,0.14895915,68397.0,68388.0,0.1]
[1729287863680,0.0109408,68394.0,68388.0,0.1]
[1729287863887,0.14895915,68397.0,68388.0,0.1]
[1729287864098,0.01095391,68396.0,68388.0,0.1]
[1729287864302,0.01095391,68395.0,68388.0,0.1]
[1729287864503,0.01095391,68394.0,68388.0,0.1]
[1729287864707,0.14895915,68397.0,68388.0,0.1]
[1729287864915,0.01095417,68396.0,68388.0,0.1]
[1729287865119,0.01095417,68395.0,68388.0,0.1]
[1729287865299,0.01095417,68394.0,68388.0,0.1]
[1729287865512,0.04438619,68404.0,68388.0,0.1]
[1729287865718,0.04438619,68404.0,68387.0,0.21992513]
[1729287865719,0.02464756,68403.0,68394.0,0.1]
[1729287865938,0.14978815,68404.0,68394.0,0.1]
[1729287865939,0.01095447,68402.0,68395.0,0.0903]
[1729287866146,0.01095447,68401.0,68395.0,0.0903]
[1729287866347,0.14978815,68404.0,68395.0,0.0903]
[1729287866556,0.01095113,68403.0,68395.0,0.0903]
[1729287866764,0.01095113,68402.0,68395.0,0.0903]
[1729287866998,0.14978815,68404.0,68395.0,0.0903]
[1729287867278,0.01095113,68403.0,68395.0,0.0903]
[1729287867485,0.01095113,68402.0,68396.0,0.21826913]
[1729287867691,0.000829,68404.0,68395.0,0.0903]
[1729287867898,0.01094873,68403.0,68395.0,0.0903]
[1729287868116,0.01094873,68402.0,68395.0,0.0903]
[1729287868323,0.000829,68404.0,68395.0,0.0903]
[1729287868523,0.01094698,68403.0,68395.0,0.0903]
[1729287868748,0.000829,68404.0,68395.0,0.0903]
[1729287868952,0.01094697,68403.0,68395.0,0.0903]
[1729287869171,0.000829,68404.0,68395.0,0.0903]
[1729287869386,0.01094526,68403.0,68395.0,0.0903]
[1729287869598,0.000829,68404.0,68395.0,0.0903]
[1729287869776,0.01094526,68403.0,68395.0,0.0903]
[1729287870006,0.000829,68404.0,68395.0,0.0903]
[1729287870188,0.01094526,68403.0,68395.0,0.0903]
[1729287870360,0.000829,68404.0,68395.0,0.0903]
[1729287871896,0.01094237,68403.0,68395.0,0.0903]
[1729287872188,0.000829,68404.0,68395.0,0.0903]
[1729287872323,0.01094239,68403.0,68395.0,0.0903]
[1729287872552,0.000829,68404.0,68395.0,0.0903]
[1729287872982,0.01094247,68403.0,68395.0,0.0903]
[1729287873193,0.04438619,68404.0,68395.0,0.0903]
[1729287873402,0.05462884,68403.0,68395.0,0.0903]
[1729287873627,0.01094135,68402.0,68395.0,0.0903]
[1729287873831,0.04451649,68404.0,68395.0,0.0903]
[1729287874037,0.05462881,68403.0,68395.0,0.0903]
[1729287874243,0.04368749,68403.0,68395.0,0.0903]
[1729287875119,0.04368749,68402.0,68395.0,0.0903]
[1729287875942,0.04368749,68401.0,68395.0,0.0903]
[1729287876144,0.04368749,68400.0,68395.0,0.0903]
[1729287876350,0.04368749,68401.0,68395.0,0.0903]
[1729287876762,0.04368749,68402.0,68395.0,0.0903]
[1729287876979,0.04368749,68401.0,68395.0,0.0903]
[1729287877403,0.04368749,68399.0,68395.0,0.0903]
[1729287878233,0.1705,68398.0,68387.0,0.001656]
[1729287878449,0.04374146,68394.0,68387.0,0.001656]
[1729287878673,0.16144977,68397.0,68387.0,0.001656]
[1729287878674,0.04374146,68393.0,68387.0,0.001656]
[1729287879094,0.06561219,68394.0,68387.0,0.001656]
[1729287879302,0.08748292,68394.0,68387.0,0.001656]
[1729287879506,0.06563077,68393.0,68387.0,0.001656]
[1729287879737,0.08748292,68394.0,68387.0,0.001656]
[1729287879950,0.16151093,68393.0,68387.0,0.001656]
[1729287883040,0.16156327,68393.0,68387.0,0.001656]
[1729287888039,0.16159119,68393.0,68387.0,0.001656]
[1729287888507,0.31055034,68393.0,68387.0,0.001656]
[1729287889423,0.29255034,68393.0,68387.0,0.001656]
[1729287889603,0.21462242,68393.0,68387.0,0.001656]
[1729287892687,0.21462208,68393.0,68387.0,0.001656]
[1729287893615,0.21462208,68393.0,68387.0,0.02452821]
[1729287894792,0.14895915,68393.0,68387.0,0.02452821]
[1729287895246,0.21462208,68393.0,68387.0,0.02452821]
[1729287895470,0.14895915,68393.0,68387.0,0.02452821]
[1729287895889,0.19273246,68393.0,68387.0,0.02452821]
[1729287897593,0.19272806,68393.0,68387.0,0.02452821]
[1729287899487,0.14895915,68393.0,68387.0,0.001656]
[1729287901667,0.19273087,68393.0,68387.0,0.001656]
[1729287903070,0.14895915,68393.0,68387.0,0.001656]
[1729287903484,0.19273227,68393.0,68387.0,0.001656]
[1729287904173,0.14895915,68393.0,68387.0,0.001656]
[1729287904537,0.21461252,68393.0,68387.0,0.001656]
[1729287905219,0.14895915,68393.0,68387.0,0.001656]
[1729287905432,0.04377456,68393.0,68387.0,0.001656]
[1729287905810,0.04377381,68393.0,68387.0,0.001656]
[1729287908271,0.05473001,68393.0,68389.0,0.0902]
[1729287908473,0.04377381,68393.0,68389.0,0.0902]
[1729287908598,0.04377381,68394.0,68389.0,0.0902]
[1729287908808,0.19273296,68394.0,68389.0,0.0902]
[1729287909012,0.04377381,68393.0,68389.0,0.0902]
[1729287909240,0.19273296,68394.0,68389.0,0.0902]
[1729287909803,0.04377381,68393.0,68389.0,0.0902]
[1729287910002,0.19273296,68394.0,68389.0,0.0902]
[1729287910201,0.04377381,68393.0,68389.0,0.0902]
[1729287910655,0.19273276,68394.0,68389.0,0.0902]
[1729287911350,0.04377361,68393.0,68389.0,0.0902]
[1729287911801,0.19273276,68394.0,68389.0,0.0902]
[1729287912415,0.04377361,68393.0,68389.0,0.0902]
[1729287912848,0.19273276,68394.0,68389.0,0.0902]
[1729287913116,0.19255639,68394.0,68389.0,0.0902]
[1729287913295,0.05472994,68393.0,68389.0,0.0902]
[1729287914226,0.01178533,68393.0,68389.0,0.0902]
[1729287914688,0.05556728,68393.0,68389.0,0.0902]
[1729287915179,0.04461095,68393.0,68389.0,0.0902]
[1729287915338,0.05556729,68393.0,68389.0,0.0902]
[1729287915488,0.01178534,68393.0,68389.0,0.0902]
[1729287915689,0.000829,68393.0,68389.0,0.0902]
[1729287915894,0.01178563,68393.0,68389.0,0.0902]
[1729287916294,0.17341727,68393.0,68389.0,0.0902]
[1729287916497,0.06651386,68393.0,68389.0,0.0902]
[1729287918219,0.07728406,68393.0,68389.0,0.0902]
[1729287920347,0.07729827,68393.0,68389.0,0.0902]
[1729287921536,0.0115992,68393.0,68389.0,0.0902]
[1729287921733,0.07731124,68393.0,68389.0,0.0902]
[1729287922388,0.0115992,68393.0,68389.0,0.0902]
[1729287922587,0.17333249,68393.0,68389.0,0.0902]
[1729287923549,0.26093126,68393.0,68389.0,0.0902]
[1729287925088,0.26100263,68393.0,68389.0,0.0902]
[1729287927236,0.17336052,68393.0,68392.0,0.180556]
[1729287927443,0.0115992,68393.0,68392.0,0.280556]
[1729287928070,0.07732621,68393.0,68392.0,0.280556]
[1729287928310,0.0115992,68393.0,68392.0,0.280556]
[1729287928532,0.07732621,68393.0,68392.0,0.280556]
[1729287928782,0.07732507,68393.0,68392.0,0.280556]
[1729287930186,0.1733444,68393.0,68392.0,0.280556]
[1729287931134,0.0115992,68393.0,68392.0,0.280556]
[1729287931588,0.17334353,68393.0,68392.0,0.280556]
[1729287932077,0.07732449,68393.0,68392.0,0.280556]
[1729287932895,0.07732449,68393.0,68392.0,0.201156]
[1729287933922,0.0115992,68393.0,68392.0,0.201156]
[1729287934130,0.07732363,68393.0,68392.0,0.201156]
[1729287934343,0.17334322,68393.0,68392.0,0.201156]
[1729287934794,0.0115992,68393.0,68392.0,0.201156]
[1729287935022,0.07732442,68393.0,68392.0,0.201156]
[1729287935230,0.0115992,68393.0,68392.0,0.201156]
[1729287935923,0.17334692,68393.0,68392.0,0.201156]
[1729287936328,0.0115992,68393.0,68392.0,0.201156]
[1729287936771,0.07732558,68393.0,68392.0,0.201156]
[1729287936964,0.0115992,68393.0,68392.0,0.201156]
[1729287938062,0.17335046,68393.0,68392.0,0.201156]
[1729287938258,0.2609841,68393.0,68392.0,0.201156]
[1729287938476,0.17335046,68393.0,68392.0,0.201156]
[1729287938854,0.0115992,68393.0,68392.0,0.201156]
[1729287939269,0.17335473,68393.0,68392.0,0.201156]
[1729287939411,0.0115992,68393.0,68392.0,0.201156]
[1729287939833,0.17335729,68393.0,68392.0,0.201156]
[1729287940441,0.26099765,68393.0,68392.0,0.201156]
[1729287941108,0.17335729,68393.0,68392.0,0.201156]
[1729287941645,0.26099765,68393.0,68392.0,0.201156]
[1729287943033,0.26101556,68393.0,68392.0,0.201156]
[1729287944592,0.26101814,68393.0,68392.0,0.201156]
[1729287945634,0.17336769,68393.0,68392.0,0.001656]
[1729287945991,0.07733331,68393.0,68392.0,0.001656]
[1729287946190,0.07733262,68393.0,68392.0,0.001656]
[1729287946824,0.0115992,68393.0,68392.0,0.001656]
[1729287947416,0.17336592,68393.0,68392.0,0.001656]
[1729287947634,0.26101348,68393.0,68392.0,0.001656]
[1729287949357,0.26101248,68393.0,68392.0,0.001656]
[1729287954265,0.17337302,68393.0,68392.0,0.001656]
[1729287954465,0.17337397,68393.0,68392.0,0.001656]
[1729287954860,0.26102129,68393.0,68392.0,0.001656]
[1729287955327,0.0115992,68393.0,68392.0,0.001656]
[1729287955776,0.26101984,68393.0,68392.0,0.001656]
[1729287956001,0.26101984,68393.0,68392.0,0.099956]
[1729287956234,0.26102606,68393.0,68392.0,0.099956]
[1729287956676,0.26102606,68393.0,68392.0,0.001656]
[1729287957845,0.26103242,68393.0,68392.0,0.001656]
[1729287958078,0.17337984,68393.0,68392.0,0.001656]
[1729287958319,0.26103242,68393.0,68392.0,0.001656]
[1729287959020,0.17337984,68393.0,68392.0,0.001656]
[1729287959251,0.26103424,68393.0,68392.0,0.001656]
[1729287962285,0.17338102,68393.0,68392.0,0.001656]
[1729287963932,0.26104451,68393.0,68392.0,0.001656]
[1729287964361,0.17338102,68393.0,68392.0,0.001656]
[1729287964613,0.26104599,68393.0,68392.0,0.001656]
[1729287964849,0.26104539,68393.0,68392.0,0.001656]
[1729287965090,0.26104566,68393.0,68392.0,0.001656]
[1729287965326,0.17338102,68393.0,68392.0,0.001656]
[1729287965791,0.26104593,68393.0,68392.0,0.001656]
[1729287966070,0.17338102,68393.0,68392.0,0.001656]
[1729287967079,0.26104577,68393.0,68392.0,0.001656]
[1729287967714,0.26104573,68393.0,68392.0,0.001656]
[1729287967856,0.17338102,68393.0,68392.0,0.001656]
[1729287968062,0.29390641,68393.0,68392.0,0.001656]
[1729287968481,0.17338102,68393.0,68392.0,0.001656]
[1729287968671,0.29390632,68393.0,68392.0,0.001656]
[1729287969115,0.17338102,68393.0,68392.0,0.001656]
[1729287969334,0.28294754,68393.0,68392.0,0.001656]
[1729287969777,0.17338102,68393.0,68392.0,0.001656]
[1729287970204,0.29390619,68393.0,68392.0,0.001656]
[1729287970587,0.17338102,68393.0,68392.0,0.001656]
[1729287971443,0.26104331,68393.0,68392.0,0.001656]
[1729287971644,0.17338102,68393.0,68392.0,0.001656]
[1729287972148,0.17339921,68393.0,68392.0,0.001656]
[1729287974544,0.29393663,68393.0,68392.0,0.001656]
[1729287974949,0.17339921,68393.0,68392.0,0.001656]
[1729287975153,0.28297805,68393.0,68392.0,0.001656]
[1729287975453,0.29393637,68393.0,68392.0,0.001656]
[1729287975672,0.17339921,68393.0,68392.0,0.001656]
[1729287975870,0.28297805,68393.0,68392.0,0.001656]
[1729287976096,0.17339921,68393.0,68392.0,0.001656]
[1729287977652,0.28297805,68393.0,68392.0,0.001656]
[1729287978056,0.29393682,68393.0,68392.0,0.001656]
[1729287978683,0.17339921,68393.0,68392.0,0.001656]
[1729287978886,0.18435784,68393.0,68392.0,0.001656]
[1729287979109,0.29394067,68393.0,68392.0,0.001656]
[1729287979771,0.28298204,68393.0,68392.0,0.001656]
[1729287980589,0.0115992,68393.0,68392.0,0.281856]
[1729287980882,0.05542739,68393.0,68392.0,0.281856]
[1729287981329,0.0115992,68393.0,68392.0,0.281856]
[1729287993093,0.0115992,68393.0,68392.0,0.43081515]
[1729287996547,0.0115992,68393.0,68392.0,0.79646815]
[1729287998195,0.0115992,68393.0,68392.0,0.86211318]
[1729287998427,0.0115992,68393.0,68392.0,0.84017566]
[1729287998550,0.0115992,68393.0,68392.0,0.79646815]
[1729288000597,0.21826913,68406.0,68392.0,0.79646815]
[1729288000738,0.000992,68408.0,68395.0,0.167]
[1729288000950,0.000992,68408.0,68398.0,0.1]
[1729288001244,0.000992,68408.0,68401.0,0.0755]
[1729288001457,0.000992,68408.0,68403.0,0.267]
[1729288001658,0.000992,68408.0,68403.0,1.57991815]
[1729288002034,0.000828,68420.0,68403.0,1.57991815]
[1729288004667,0.000828,68420.0,68403.0,0.41595915]
[1729288005470,0.000828,68420.0,68403.0,3.13315215]
[1729288007439,0.000828,68420.0,68403.0,3.12028015]
[1729288009590,0.000828,68420.0,68403.0,2.05540915]
[1729288009998,0.000828,68420.0,68403.0,1.89439915]
[1729288010960,0.000828,68420.0,68403.0,1.84869215]
[1729288022708,0.0985,68417.0,68403.0,1.84869215]
[1729288023859,0.08,68415.0,68403.0,1.75719215]
[1729288025137,0.0985,68417.0,68403.0,1.75719215]
[1729288027527,0.0985,68417.0,68403.0,1.85469215]
[1729288037485,0.0985,68417.0,68403.0,0.32445915]
[1729288037685,0.098,68408.0,68403.0,0.24895915]
[1729288037858,0.098,68408.0,68403.0,2.37324315]
[1729288038041,0.1739,68412.0,68403.0,2.37325415]
[1729288038271,0.098,68412.0,68403.0,2.37325415]
[1729288042718,0.098,68412.0,68403.0,2.36154515]
[1729288043331,0.098,68412.0,68403.0,2.4051845]
[1729288046282,0.098,68412.0,68403.0,2.36154515]
[1729288053401,0.13732637,68416.0,68403.0,2.52844515]
[1729288058348,0.093528,68416.0,68403.0,2.57221478]
[1729288059049,0.093528,68416.0,68403.0,2.59521478]
[1729288059301,0.093528,68416.0,68405.0,0.1]
[1729288059520,0.093528,68416.0,68407.0,0.1]
[1729288059726,0.093528,68416.0,68408.0,0.14895915]
[1729288059973,0.093528,68416.0,68409.0,0.1]
[1729288060223,0.093528,68416.0,68411.0,0.1]
[1729288060463,0.093528,68416.0,68412.0,0.14895915]
[1729288060695,0.093528,68416.0,68413.0,0.1]
[1729288060949,0.093528,68416.0,68413.0,0.24895915]
[1729288062811,0.01088255,68414.0,68413.0,0.24895915]
[1729288063057,0.02327785,68414.0,68413.0,0.24895915]
[1729288063499,0.02410585,68414.0,68413.0,0.24895915]
[1729288087335,0.02410585,68414.0,68413.0,0.24849957]
[1729288111037,0.02410585,68414.0,68413.0,0.25015557]
[1729288121767,0.02410585,68414.0,68413.0,0.38445457]
[1729288129935,0.0132633,68414.0,68413.0,0.38445457]
[1729288142191,0.0132633,68414.0,68413.0,0.25015557]
[1729288142364,0.0132633,68414.0,68413.0,1.61556657]
[1729288142573,0.0132633,68414.0,68413.0,0.25015557]
[1729288142829,0.0132633,68414.0,68413.0,1.61556657]
[1729288143040,0.0132633,68414.0,68413.0,1.61555657]
[1729288153596,0.0132633,68414.0,68413.0,1.38351857]
[1729288155444,0.0132633,68414.0,68413.0,0.25015557]
[1729288155731,0.02581252,68414.0,68413.0,1.96465457]
[1729288155975,0.02581252,68414.0,68413.0,0.25015557]
[1729288156212,0.02581252,68414.0,68413.0,1.94857957]
[1729288156439,0.02581252,68414.0,68413.0,1.94859057]
[1729288157542,0.02581252,68414.0,68413.0,1.80253257]
[1729288158044,0.02581252,68414.0,68413.0,1.57638757]
[1729288163472,0.02581252,68414.0,68413.0,1.75188757]
[1729288164585,0.02581252,68414.0,68413.0,1.65518757]
[1729288169208,0.02581252,68414.0,68413.0,0.32895557]
[1729288169829,0.02581252,68414.0,68413.0,2.41126557]
[1729288170058,0.02581252,68414.0,68413.0,2.45498957]
[1729288170531,0.02581252,68414.0,68413.0,2.42749157]
[1729288172232,0.02581252,68414.0,68413.0,2.14033857]
[1729288173144,0.02581252,68414.0,68413.0,2.06153857]
[1729288175239,0.02581252,68414.0,68413.0,1.88697557]
[1729288175620,0.02581252,68414.0,68413.0,1.84342357]
[1729288178499,0.02581252,68414.0,68413.0,1.80285957]
[1729288178907,0.02581252,68414.0,68413.0,1.78329957]
[1729288186210,0.02581252,68414.0,68413.0,1.63549957]
[1729288186543,0.02581252,68414.0,68413.0,1.36243457]
[1729288190685,0.02581252,68414.0,68413.0,1.35144857]
[1729288197556,0.02581252,68414.0,68413.0,0.25015557]
[1729288197765,0.02581252,68414.0,68413.0,1.59304557]
[1729288197965,0.02581252,68414.0,68413.0,1.59304757]
[1729288198166,0.02581252,68414.0,68413.0,1.36616957]
[1729288206809,0.20011252,68414.0,68413.0,0.445731]
[1729288207048,0.24392475,68414.0,68413.0,0.001656]
[1729288207302,0.20011252,68414.0,68413.0,0.001656]
[1729288208292,0.36183445,68414.0,68413.0,0.001656]
[1729288208513,0.2658101,68414.0,68413.0,0.001656]
[1729288210396,0.20011252,68414.0,68413.0,0.001656]
[1729288212338,0.24389033,68414.0,68413.0,0.001656]
[1729288215560,0.20011252,68414.0,68413.0,0.001656]
[1729288222929,0.27948052,68414.0,68413.0,0.001656]
[1729288224168,0.20011252,68414.0,68413.0,0.001656]
[1729288224373,0.21378187,68414.0,68413.0,0.001656]
[1729288224588,0.27947945,68414.0,68413.0,0.001656]
[1729288224798,0.21378222,68414.0,68413.0,0.001656]
[1729288225002,0.2794798,68414.0,68413.0,0.001656]
[1729288225420,0.21378222,68414.0,68413.0,0.001656]
[1729288225628,0.2794798,68414.0,68413.0,0.001656]
[1729288226298,0.52420704,68414.0,68413.0,0.001656]
[1729288226534,0.63370409,68414.0,68413.0,0.001656]
[1729288226767,0.54881335,68414.0,68413.0,0.001656]
[1729288227386,0.53514474,68414.0,68413.0,0.001656]
[1729288227608,0.62260681,68414.0,68413.0,0.001656]
[1729288228079,0.53514474,68414.0,68413.0,0.001656]
[1729288229381,0.62258884,68414.0,68413.0,0.001656]
[1729288230353,0.62258437,68414.0,68413.0,0.001656]
[1729288230770,0.62258355,68414.0,68413.0,0.001656]
[1729288231168,0.60891806,68414.0,68413.0,0.001656]
[1729288231370,0.62258355,68414.0,68413.0,0.001656]
[1729288233440,0.53513945,68414.0,68413.0,0.001656]
[1729288236392,0.54881429,68414.0,68413.0,0.001656]
[1729288236595,0.54869444,68414.0,68413.0,0.001656]
[1729288237627,0.5350196,68414.0,68413.0,0.001656]
[1729288237831,0.54869458,68414.0,68413.0,0.001656]
[1729288238189,0.54869354,68414.0,68413.0,0.001656]
[1729288238599,0.53503133,68414.0,68413.0,0.001656]
[1729288238804,0.54870621,68414.0,68413.0,0.001656]
[1729288239461,0.64703755,68414.0,68413.0,0.001656]
[1729288239670,0.65797756,68414.0,68413.0,0.001656]
[1729288240076,0.65797759,68414.0,68413.0,0.001656]
[1729288241088,0.54870635,68414.0,68413.0,0.001656]
[1729288241324,0.65797759,68414.0,68413.0,0.001656]
[1729288241713,0.000828,68416.0,68414.0,0.34202241]
[1729288241957,0.000828,68416.0,68415.0,0.1]
[1729288244792,0.182928,68416.0,68415.0,0.1]
[1729288245875,0.19745249,68416.0,68415.0,0.1]
[1729288247387,0.19945249,68416.0,68415.0,0.1]
[1729288248933,0.34841164,68416.0,68415.0,0.1]
[1729288250376,0.41398618,68416.0,68415.0,0.1]
[1729288251703,0.34841164,68416.0,68415.0,0.1]
[1729288252594,0.37030895,68416.0,68415.0,0.1]
[1729288253715,0.40863302,68416.0,68415.0,0.1]
[1729288254985,0.39768605,68416.0,68415.0,0.1]
[1729288255203,0.40863799,68416.0,68415.0,0.1]
[1729288256778,0.57015308,68416.0,68414.0,0.34367841]
[1729288256997,0.46710059,68415.0,68414.0,0.34367841]
[1729288257264,0.49902617,68415.0,68414.0,0.34367841]
[1729288257489,0.50102617,68415.0,68414.0,0.34367841]
[1729288258412,0.50102617,68415.0,68414.0,0.44367841]
[1729288258643,0.45541066,68415.0,68414.0,0.44367841]
[1729288258884,0.5010336,68415.0,68414.0,0.44367841]
[1729288260002,0.50104275,68415.0,68414.0,0.44367841]
[1729288260216,0.49904275,68415.0,68414.0,0.44367841]
[1729288261370,0.51473238,68415.0,68414.0,0.44367841]